fUSD/lending_fUSD_20260410
["ID","MTS","AMOUNT","RATE_DAILY","PERIOD"]
[420211630,1775784636912,-414.030773,0.00015587,2]
[420211631,1775784636921,-414.030773,0.00015587,2]
[420211632,1775784636934,-268.347184,0.00015587,2]
[420211633,1775784636943,-414.030773,0.00015587,2]
[420211634,1775784636952,-268.347184,0.00015587,2]
[420211635,1775784636964,-268.347184,0.00015587,2]
[420211636,1775784636974,-268.347184,0.00015587,2]
[420211637,1775784636984,-151.0,0.00015587,2]
[420211638,1775784636993,-151.0,0.00015587,2]
[420211639,1775784637007,-151.0,0.00015587,2]
[420211640,1775784637016,-151.0,0.00015587,2]
[420211641,1775784637028,-151.0,0.00015587,2]
[420211642,1775784637040,-151.0,0.00015587,2]
[420211643,1775784637055,-151.0,0.00015587,2]
[420211644,1775784637065,-151.0,0.00015587,2]
[420211645,1775784637091,-281.340592,0.00015587,2]
[420211646,1775784637104,-151.0,0.00015587,2]
[420211647,1775784637119,-151.0,0.00015587,2]
[420211648,1775784637129,-150.0,0.00015587,2]
[420211649,1775784637139,-151.0,0.00015587,2]
[420211650,1775784637159,-151.0,0.00015587,2]
[420211651,1775784637181,-151.0,0.00015587,2]
[420211652,1775784637198,-151.0,0.00015587,2]
[420211653,1775784637217,-151.0,0.00015587,2]
[420211654,1775784637231,-151.0,0.00015587,2]
[420211655,1775784637253,-151.0,0.00015587,2]
[420211656,1775784637284,-168.98666,0.00015587,2]
[420211657,1775784637313,-151.0,0.00015587,2]
[420211658,1775784637360,-151.0,0.00015587,2]
[420211659,1775784637371,-151.0,0.00015587,2]
[420211660,1775784637404,-151.0,0.00015587,2]
[420211661,1775784637415,-151.0,0.00015587,2]
[420211662,1775784637444,-151.0,0.00015587,2]
[420211663,1775784637455,-260.96,0.00015587,2]
[420211664,1775784637472,-7051.11,0.0001559,2]
[420211665,1775784637492,-700.0,0.00015595,2]
[420211666,1775784637507,-500.0,0.00015599,2]
[420211667,1775784637536,-500.0,0.00015599,2]
[420211668,1775784637547,-500.0,0.00015599,2]
[420211669,1775784637558,-500.0,0.00015599,2]
[420211670,1775784637588,-58556.83406384,0.000156,2]
[420211671,1775784637638,-1254.41808677,0.000156,2]
[420211672,1775784637658,-738.86152533,0.000156,2]
[420211675,1775784638647,-38705.1093591,0.00011669,2]
[420211677,1775784638660,-668.61441349,0.00011669,2]
[420211680,1775784638672,-3541.11220287,0.00011669,2]
[420211682,1775784638695,-908.34329009,0.00011669,2]
[420211685,1775784638707,-2159.41324796,0.00011669,2]
[420211687,1775784639127,-506.0,0.00011669,2]
[420211789,1775784641094,-403.49527704,0.00011669,2]
[420211835,1775784648430,-1864.18220945,0.00011669,2]
[420211836,1775784648446,-600.0,0.0001223,2]
[420211837,1775784648456,-726.0,0.00013447,2]
[420211838,1775784648465,-7343.71913913,0.000151,2]
[420211839,1775784648484,-7343.71913913,0.000155,2]
[420211840,1775784648493,-1968.77,0.000155,2]
[420211841,1775784648503,-51973.6095123,0.000156,2]
[420211842,1775784648522,-282.45098219,0.000156,2]
[420211843,1775784648531,-151.0,0.000156,2]
[420211844,1775784648541,-250.702475,0.000156,2]
[420211845,1775784648550,-250.702475,0.000156,2]
[420211846,1775784648565,-250.702475,0.000156,2]
[420211847,1775784648576,-250.702475,0.000156,2]
[420211848,1775784648586,-151.0,0.000156,2]
[420211849,1775784648596,-151.0,0.000156,2]
[420211850,1775784648605,-152.028811,0.000156,2]
[420211851,1775784648615,-152.438088,0.000156,2]
[420211852,1775784648625,-151.0,0.000156,2]
[420211853,1775784648635,-151.0,0.000156,2]
[420211854,1775784648644,-151.0,0.000156,2]
[420211855,1775784648654,-151.0,0.000156,2]
[420211856,1775784648665,-151.0,0.000156,2]
[420211857,1775784648678,-101.12565997,0.000156,2]
[420211880,1775784913297,158.71,7.089e-05,2]
[420211881,1775785197153,-3116.0,0.000109,5]
[420211884,1775785831733,-261.62262349,0.000106,5]
[420211885,1775785831759,-1770.0,0.000106,5]
[420211886,1775785831773,-270.37737651,0.000106,5]
[420211887,1775785831786,-417.51182976,0.0001124,2]
[420211888,1775785831807,-188.08872166,0.0001124,2]
[420211889,1775785831833,-600.0,0.0001166,2]
[420211890,1775785831843,-183.63281421,0.0001166,2]
[420211891,1775785831861,-68.82558063,0.0001166,2]
[420211892,1775785831878,-250.0,0.00013,2]
[420211893,1775785831894,-506.0,0.000131,2]
[420211894,1775785831911,-1080.0,0.00013697,2]
[420211895,1775785831924,-500.0,0.00013698,2]
[420211896,1775785831935,-500.0,0.00013698,2]
[420211898,1775785831959,-500.0,0.00013698,2]
[420211900,1775785831969,-500.0,0.00013698,2]
[420211903,1775785831984,-1611.92,0.0001378,2]
[420211905,1775785832021,-850.23149905,0.00013962,2]
[420211907,1775785832045,-1137.6,0.0001406,2]
[420211909,1775785832071,-150.0,0.000141,2]
[420211911,1775785832094,-540.2185208,0.0001411,2]
[420211913,1775785832123,-158.71,0.00014178,2]
[420211915,1775785832137,-160.0,0.00014433,2]
[420211916,1775785832159,-232.82,0.00014464,7]
[420211917,1775785832178,-2208.32036586,0.00014468,2]
[420211918,1775785832233,-646.15745312,0.00014468,2]
[420211919,1775785832264,-303.8818997,0.00014468,2]
[420211920,1775785832314,-1728.86928132,0.00014468,2]
[420211921,1775785832329,-400.0,0.00014468,7]
[420211922,1775785832345,-750.5498268,0.00014468,2]
[420211923,1775785832359,-400.0,0.00014472,7]
[420211924,1775785832369,-506.0,0.00014494,3]
[420211925,1775785832390,-872.721832,0.00014509,2]
[420211926,1775785832401,-201.74506442,0.00014559,2]
[420211927,1775785832413,-1159.29942433,0.00014559,2]
[420211928,1775785832437,-2569.83744964,0.00014567,2]
[420211929,1775785832451,-329.97592873,0.00014567,2]
[420211930,1775785832463,-1773.977,0.00014567,2]
[420211931,1775785832476,-189.099,0.00014567,2]
[420211932,1775785832491,-150.0,0.00014567,2]
[420211933,1775785832503,-757.36371996,0.00014568,2]
[420211934,1775785832522,-385.00293256,0.00014568,2]
[420211935,1775785832538,-112120.62409618,0.00014568,2]
[420211936,1775785832558,-523.48447467,0.00014568,2]
[420211938,1775785839038,-4744.44008108,0.00014568,2]
[420211939,1775785839055,-309.14823384,0.00014568,2]
[420211940,1775785839091,-5839.49686524,0.00014568,2]
[420211941,1775785839121,-4688.52311579,0.00014568,2]
[420211942,1775785839167,-0.2,0.00014568,2]
[420211951,1775785842681,-12544.79025468,0.00014568,2]
[420211952,1775785842705,-165.66857623,0.00014568,2]
[420211953,1775785842735,-22056.95378587,0.00014568,2]
[420211954,1775785842757,-418.4,0.00014581,2]
[420211955,1775785842772,-484.17,0.00014581,2]
[420211956,1775785842784,-750.54982673,0.00014627,2]
[420211957,1775785842803,-484.17,0.00014694,2]
[420211958,1775785842824,-160.7,0.00014697,2]
[420211959,1775785842834,-750.54982673,0.00014786,2]
[420211960,1775785842844,-2000.0,0.00014792,2]
[420211961,1775785842863,-418.4,0.00014804,2]
[420211962,1775785842873,-484.17,0.00014804,2]
[420211963,1775785842887,-200.0,0.00014805,2]
[420211964,1775785842896,-500.0,0.00014877,2]
[420211965,1775785842914,-1812.0,0.00014911,2]
[420211966,1775785842924,-484.17,0.00014913,2]
[420211967,1775785842934,-750.54982673,0.00014945,2]
[420211968,1775785842946,-601.3376128,0.00014987,2]
[420211969,1775785842960,-958.65903027,0.00014987,2]
[420211970,1775785842970,-300.0,0.00015,2]
[420211971,1775785842981,-3886.0,0.00015,2]
[420211972,1775785842991,-2291.0,0.00015,2]
[420211973,1775785843000,-418.4,0.00015024,2]
[420211974,1775785843010,-484.21874356,0.00015024,2]
[420211975,1775785843019,-750.54982673,0.00015104,2]
[420211976,1775785843030,-220.458693,0.000152,2]
[420211977,1775785843040,-175.0849,0.000152,2]
[420211978,1775785843050,-459.92,0.00015251,2]
[420211979,1775785843064,-750.54982673,0.00015264,2]
[420211980,1775785843081,-964.0,0.00015342,2]
[420211981,1775785843091,-168.0,0.00015364,2]
[420211982,1775785843111,-168.0,0.00015365,2]
[420211983,1775785843121,-2500.0,0.000154,2]
[420211984,1775785843130,-750.54982673,0.00015423,2]
[420211985,1775785843149,-390.07,0.00015429,2]
[420211986,1775785843161,-183.236649,0.00015433,2]
[420211987,1775785843179,-442.761803,0.00015478,2]
[420211988,1775785843188,-500.0,0.00015499,2]
[420211989,1775785843198,-500.0,0.00015499,2]
[420211990,1775785843213,-500.0,0.00015499,2]
[420211991,1775785843222,-235.6,0.000155,7]
[420211992,1775785843233,-400.0,0.000155,7]
[420211993,1775785843242,-400.0,0.00015505,7]
[420211994,1775785843259,-400.0,0.00015505,7]
[420211995,1775785843269,-172.0,0.00015505,7]
[420211996,1775785843281,-250.0,0.00015507,2]
[420211997,1775785843291,-155.43,0.00015508,30]
[420211998,1775785843301,-400.0,0.0001551,7]
[420211999,1775785843312,-400.0,0.0001551,7]
[420212000,1775785843336,-400.0,0.0001551,7]
[420212001,1775785843345,-400.0,0.00015513,30]
[420212002,1775785843354,-199.2,0.00015517,30]
[420212003,1775785843379,-400.0,0.00015517,30]
[420212004,1775785843390,-488.81683229,0.00015525,2]
[420212005,1775785843403,-168.0,0.00015528,2]
[420212006,1775785843420,-488.81683227,0.00015567,2]
[420212007,1775785843430,-750.54982673,0.00015582,2]
[420212008,1775785843441,-530.89108968,0.00015586,2]
[420212009,1775785843458,-500.0,0.00015586,2]
[420212010,1775785843468,-500.0,0.00015586,2]
[420212012,1775785843493,-485.47152628,0.00015599,2]
[420212013,1775785843504,-49.87434003,0.000156,2]
[420212015,1775785843521,-151.0,0.000156,2]
[420212017,1775785843533,-151.0,0.000156,2]
[420212018,1775785843549,-151.0,0.000156,2]
[420212019,1775785843563,-151.0,0.000156,2]
[420212020,1775785843582,-231.773515,0.000156,2]
[420212021,1775785843591,-231.773515,0.000156,2]
[420212022,1775785843605,-231.773515,0.000156,2]
[420212023,1775785843626,-231.773515,0.000156,2]
[420212024,1775785843635,-151.0,0.000156,2]
[420212025,1775785843650,-151.0,0.000156,2]
[420212026,1775785843690,-151.0,0.000156,2]
[420212027,1775785843702,-151.0,0.000156,2]
[420212028,1775785843717,-151.0,0.000156,2]
[420212029,1775785843732,-151.0,0.000156,2]
[420212030,1775785843743,-172.920049,0.000156,2]
[420212031,1775785843757,-172.920049,0.000156,2]
[420212032,1775785843785,-172.920049,0.000156,2]
[420212033,1775785843796,-151.0,0.000156,2]
[420212034,1775785843809,-172.920049,0.000156,2]
[420212035,1775785843840,-151.0,0.000156,2]
[420212036,1775785843850,-151.0,0.000156,2]
[420212037,1775785843881,-151.0,0.000156,2]
[420212038,1775785843890,-151.0,0.000156,2]
[420212039,1775785843902,-160.392769,0.000156,2]
[420212040,1775785843928,-151.0,0.000156,2]
[420212041,1775785843938,-151.0,0.000156,2]
[420212042,1775785843948,-151.0,0.000156,2]
[420212043,1775785843963,-151.0,0.000156,2]
[420212044,1775785843983,-151.0,0.000156,2]
[420212045,1775785843993,-210.269897,0.000156,2]
[420212046,1775785844002,-151.0,0.000156,2]
[420212047,1775785844014,-151.0,0.000156,2]
[420212048,1775785844034,-151.0,0.000156,2]
[420212049,1775785844045,-210.269897,0.000156,2]
[420212050,1775785844057,-151.0,0.000156,2]
[420212051,1775785844072,-151.0,0.000156,2]
[420212052,1775785844082,-151.0,0.000156,2]
[420212053,1775785844093,-151.0,0.000156,2]
[420212054,1775785844105,-210.269897,0.000156,2]
[420212055,1775785844119,-151.0,0.000156,2]
[420212056,1775785844135,-151.0,0.000156,2]
[420212057,1775785844146,-210.269897,0.000156,2]
[420212058,1775785844156,-151.0,0.000156,2]
[420212059,1775785844168,-151.0,0.000156,2]
[420212060,1775785844186,-151.0,0.000156,2]
[420212061,1775785844215,-151.0,0.000156,2]
[420212062,1775785844224,-151.0,0.000156,2]
[420212063,1775785844232,-151.0,0.000156,2]
[420212064,1775785844264,-151.0,0.000156,2]
[420212065,1775785844274,-151.0,0.000156,2]
[420212066,1775785844285,-151.0,0.000156,2]
[420212067,1775785844312,-151.0,0.000156,2]
[420212068,1775785844334,-151.0,0.000156,2]
[420212069,1775785844346,-151.0,0.000156,2]
[420212070,1775785844371,-151.0,0.000156,2]
[420212071,1775785844381,-151.0,0.000156,2]
[420212072,1775785844395,-151.0,0.000156,2]
[420212073,1775785844413,-151.0,0.000156,2]
[420212074,1775785844441,-191.501191,0.000156,2]
[420212075,1775785844454,-151.0,0.000156,2]
[420212076,1775785844477,-151.0,0.000156,2]
[420212077,1775785844488,-151.0,0.000156,2]
[420212078,1775785844498,-151.0,0.000156,2]
[420212079,1775785844526,-151.0,0.000156,2]
[420212080,1775785844536,-151.0,0.000156,2]
[420212081,1775785844550,-151.0,0.000156,2]
[420212082,1775785844570,-151.0,0.000156,2]
[420212083,1775785844580,-151.0,0.000156,2]
[420212084,1775785844591,-151.0,0.000156,2]
[420212085,1775785844608,-151.0,0.000156,2]
[420212086,1775785844618,-210.01967085,0.000156,2]
[420212087,1775785844627,-3769.08514969,0.000156,2]
[420212088,1775785844650,-6962.27183374,0.000156,2]
[420212089,1775785844661,-195.40619536,0.000156,2]
[420212090,1775785844670,-151.53327379,0.000156,2]
[420212091,1775785844686,-500.0,0.000156,2]
[420212092,1775785844698,-500.0,0.00015608,2]
[420212093,1775785844707,-196.02616826,0.00015608,2]
[420212094,1775785844717,-488.81683227,0.00015608,2]
[420212095,1775785844746,-37153.7384,0.00015609,2]
[420212096,1775785844756,-4911.7447,0.00015609,2]
[420212097,1775785844779,-5000.0,0.00015609,2]
[420212098,1775785844789,-151.0,0.00015625,2]
[420212099,1775785844807,-151.0,0.00015625,2]
[420212100,1775785844829,-488.81683227,0.0001565,2]
[420212101,1775785845203,-557.7004056,0.00015662,2]
[420212102,1775785845224,-488.81683227,0.00015692,2]
[420212103,1775785845234,-3600.0,0.000157,2]
[420212104,1775785845246,-151.0,0.000157,2]
[420212105,1775785845269,-151.0,0.000157,2]
[420212107,1775785845278,-151.0,0.000157,2]
[420212109,1775785845290,-151.0,0.000157,2]
[420212110,1775785845310,-151.0,0.000157,2]
[420212111,1775785845319,-151.0,0.000157,2]
[420212112,1775785845328,-151.0,0.000157,2]
[420212113,1775785845357,-151.0,0.000157,2]
[420212114,1775785845368,-151.0,0.000157,2]
[420212115,1775785845395,-151.0,0.000157,2]
[420212116,1775785845413,-151.0,0.000157,2]
[420212117,1775785845433,-151.0,0.000157,2]
[420212118,1775785845443,-151.0,0.000157,2]
[420212119,1775785845461,-159.799894,0.000157,2]
[420212120,1775785845492,-151.0,0.000157,2]
[420212121,1775785845502,-151.0,0.000157,2]
[420212122,1775785845525,-374.10266,0.000157,2]
[420212123,1775785845534,-151.0,0.000157,2]
[420212124,1775785845547,-165.844819,0.000157,2]
[420212125,1775785845561,-165.844819,0.000157,2]
[420212126,1775785845571,-374.10266,0.000157,2]
[420212127,1775785845585,-165.844819,0.000157,2]
[420212128,1775785845597,-374.10266,0.000157,2]
[420212129,1775785845612,-165.844819,0.000157,2]
[420212130,1775785845623,-374.10266,0.000157,2]
[420212131,1775785845633,-255.525738,0.000157,2]
[420212132,1775785845649,-435.650314,0.000157,2]
[420212133,1775785845658,-164.002776,0.000157,2]
[420212134,1775785845671,-164.002776,0.000157,2]
[420212135,1775785845686,-435.650314,0.000157,2]
[420212136,1775785845698,-164.002776,0.000157,2]
[420212137,1775785845722,-435.650314,0.000157,2]
[420212138,1775785845738,-164.002776,0.000157,2]
[420212139,1775785845756,-153.527589,0.000157,2]
[420212140,1775785845766,-151.0,0.000157,2]
[420212141,1775785845782,-435.650314,0.000157,2]
[420212142,1775785845800,-151.0,0.000157,2]
[420212143,1775785845811,-175.250174,0.000157,2]
[420212144,1775785845826,-151.0,0.000157,2]
[420212145,1775785845845,-151.0,0.000157,2]
[420212146,1775785845857,-151.0,0.000157,2]
[420212147,1775785845879,-151.0,0.000157,2]
[420212148,1775785845890,-151.0,0.000157,2]
[420212149,1775785845909,-162.368869,0.000157,2]
[420212150,1775785845938,-299.406292,0.000157,2]
[420212151,1775785845947,-151.0,0.000157,2]
[420212152,1775785845957,-162.368869,0.000157,2]
[420212153,1775785845987,-151.0,0.000157,2]
[420212154,1775785845996,-151.0,0.000157,2]
[420212155,1775785846010,-151.0,0.000157,2]
[420212156,1775785846036,-151.0,0.000157,2]
[420212158,1775785846045,-162.368869,0.000157,2]
[420212160,1775785846062,-151.0,0.000157,2]
[420212161,1775785846082,-151.0,0.000157,2]
[420212163,1775785846091,-151.0,0.000157,2]
[420212165,1775785846106,-151.0,0.000157,2]
[420212168,1775785846127,-162.368869,0.000157,2]
[420212170,1775785846137,-151.0,0.000157,2]
[420212172,1775785846147,-164.442272,0.000157,2]
[420212174,1775785846182,-151.0,0.000157,2]
[420212176,1775785846197,-151.0,0.000157,2]
[420212178,1775785846212,-164.442272,0.000157,2]
[420212180,1775785846229,-151.0,0.000157,2]
[420212181,1775785846243,-164.442272,0.000157,2]
[420212183,1775785846272,-151.0,0.000157,2]
[420212185,1775785846293,-183.82193,0.000157,2]
[420212186,1775785846323,-164.442272,0.000157,2]
[420212187,1775785846344,-151.0,0.000157,2]
[420212188,1775785846376,-183.82193,0.000157,2]
[420212189,1775785846386,-152.056088,0.000157,2]
[420212190,1775785846400,-151.0,0.000157,2]
[420212191,1775785846418,-151.0,0.000157,2]
[420212192,1775785846428,-183.82193,0.000157,2]
[420212193,1775785846437,-151.0,0.000157,2]
[420212194,1775785846461,-151.0,0.000157,2]
[420212195,1775785846471,-183.82193,0.000157,2]
[420212196,1775785846483,-151.0,0.000157,2]
[420212197,1775785846499,-151.0,0.000157,2]
[420212198,1775785846509,-152.708482,0.000157,2]
[420212199,1775785846518,-233.294558,0.000157,2]
[420212200,1775785846528,-151.0,0.000157,2]
[420212201,1775785846538,-233.294558,0.000157,2]
[420212202,1775785846547,-151.100523,0.000157,2]
[420212203,1775785846559,-151.0,0.000157,2]
[420212204,1775785846569,-233.294558,0.000157,2]
[420212205,1775785846578,-622.691617,0.000157,2]
[420212206,1775785846588,-151.0,0.000157,2]
[420212207,1775785846598,-151.0,0.000157,2]
[420212208,1775785846608,-233.294558,0.000157,2]
[420212209,1775785846618,-622.691617,0.000157,2]
[420212210,1775785846627,-622.691617,0.000157,2]
[420212211,1775785846637,-413.7726,0.000157,2]
[420212212,1775785846646,-622.691617,0.000157,2]
[420212213,1775785846659,-413.7726,0.000157,2]
[420212214,1775785846671,-151.0,0.000157,2]
[420212215,1775785846681,-151.0,0.000157,2]
[420212216,1775785846692,-247.432264,0.000157,2]
[420212217,1775785846705,-413.7726,0.000157,2]
[420212218,1775785846716,-151.0,0.000157,2]
[420212219,1775785846725,-151.0,0.000157,2]
[420212220,1775785846742,-151.0,0.000157,2]
[420212221,1775785846752,-413.7726,0.000157,2]
[420212222,1775785846764,-151.0,0.000157,2]
[420212223,1775785846778,-199.786779,0.000157,2]
[420212224,1775785846789,-151.0,0.000157,2]
[420212225,1775785846808,-152.092332,0.000157,2]
[420212226,1775785846821,-151.0,0.000157,2]
[420212227,1775785846830,-151.0,0.000157,2]
[420212228,1775785846849,-199.786779,0.000157,2]
[420212229,1775785846865,-151.0,0.000157,2]
[420212230,1775785846876,-199.786779,0.000157,2]
[420212231,1775785846896,-152.064284,0.000157,2]
[420212232,1775785846908,-151.0,0.000157,2]
[420212233,1775785846920,-151.0,0.000157,2]
[420212234,1775785846946,-151.0,0.000157,2]
[420212235,1775785846959,-151.0,0.000157,2]
[420212236,1775785846997,-199.786779,0.000157,2]
[420212237,1775785847025,-167.36729,0.000157,2]
[420212238,1775785847043,-605.178857,0.000157,2]
[420212239,1775785847064,-151.0,0.000157,2]
[420212240,1775785847084,-152.045346,0.000157,2]
[420212241,1775785847114,-605.178857,0.000157,2]
[420212242,1775785847124,-605.178857,0.000157,2]
[420212243,1775785847142,-160.482107,0.000157,2]
[420212244,1775785847158,-605.178857,0.000157,2]
[420212245,1775785847167,-160.482107,0.000157,2]
[420212246,1775785847186,-160.482107,0.000157,2]
[420212247,1775785847201,-160.482107,0.000157,2]
[420212248,1775785847212,-151.0,0.000157,2]
[420212249,1775785847222,-151.0,0.000157,2]
[420212250,1775785847238,-151.0,0.000157,2]
[420212251,1775785847249,-151.0,0.000157,2]
[420212252,1775785847260,-151.0,0.000157,2]
[420212253,1775785847270,-151.0,0.000157,2]
[420212254,1775785847282,-151.0,0.000157,2]
[420212255,1775785847293,-151.0,0.000157,2]
[420212256,1775785847306,-151.0,0.000157,2]
[420212257,1775785847318,-151.0,0.000157,2]
[420212258,1775785847342,-161.166246,0.000157,2]
[420212259,1775785847351,-151.0,0.000157,2]
[420212260,1775785847368,-161.166246,0.000157,2]
[420212261,1775785847378,-229.080056,0.000157,2]
[420212262,1775785847387,-263.847868,0.000157,2]
[420212263,1775785847407,-161.166246,0.000157,2]
[420212264,1775785847416,-153.599312,0.000157,2]
[420212265,1775785847428,-161.166246,0.000157,2]
[420212266,1775785847444,-153.599312,0.000157,2]
[420212267,1775785847454,-153.599312,0.000157,2]
[420212268,1775785847464,-164.061494,0.000157,2]
[420212269,1775785847483,-152.754201,0.000157,2]
[420212270,1775785847496,-274.8527,0.000157,2]
[420212271,1775785847504,-153.599312,0.000157,2]
[420212272,1775785847514,-193.774017,0.000157,2]
[420212273,1775785847524,-353.602754,0.000157,2]
[420212274,1775785847535,-151.0,0.000157,2]
[420212275,1775785847546,-193.774017,0.000157,2]
[420212276,1775785847557,-353.602754,0.000157,2]
[420212277,1775785847569,-151.0,0.000157,2]
[420212278,1775785847581,-151.0,0.000157,2]
[420212279,1775785847594,-193.774017,0.000157,2]
[420212280,1775785847603,-353.602754,0.000157,2]
[420212281,1775785847614,-151.0,0.000157,2]
[420212282,1775785847630,-193.774017,0.000157,2]
[420212283,1775785847640,-353.602754,0.000157,2]
[420212284,1775785847650,-151.0,0.000157,2]
[420212285,1775785847665,-151.0,0.000157,2]
[420212286,1775785847682,-151.0,0.000157,2]
[420212287,1775785847704,-336.812757,0.000157,2]
[420212288,1775785847717,-151.0,0.000157,2]
[420212289,1775785847749,-336.812757,0.000157,2]
[420212290,1775785847782,-170.860616,0.000157,2]
[420212291,1775785847801,-336.812757,0.000157,2]
[420212292,1775785847829,-151.843378,0.000157,2]
[420212293,1775785847840,-336.812757,0.000157,2]
[420212294,1775785847850,-151.843378,0.000157,2]
[420212295,1775785847868,-151.843378,0.000157,2]
[420212296,1775785847877,-151.843378,0.000157,2]
[420212297,1775785847893,-151.0,0.000157,2]
[420212298,1775785847903,-151.0,0.000157,2]
[420212299,1775785847912,-151.0,0.000157,2]
[420212300,1775785847921,-151.0,0.000157,2]
[420212301,1775785847930,-151.0,0.000157,2]
[420212302,1775785847942,-176.074863,0.000157,2]
[420212303,1775785847951,-500.0,0.00015708,2]
[420212304,1775785847961,-218.10807116,0.00015708,2]
[420212305,1775785847971,-268.347184,0.00015709,2]
[420212306,1775785847983,-268.347184,0.00015709,2]
[420212307,1775785847992,-268.347184,0.00015709,2]
[420212308,1775785848002,-268.347184,0.00015709,2]
[420212309,1775785848016,-151.0,0.00015709,2]
[420212310,1775785848026,-195.850997,0.00015709,2]
[420212311,1775785848036,-151.0,0.00015709,2]
[420212312,1775785848045,-151.0,0.00015709,2]
[420212313,1775785848063,-151.0,0.00015709,2]
[420212314,1775785848081,-151.0,0.00015709,2]
[420212315,1775785848090,-151.0,0.00015709,2]
[420212316,1775785848118,-151.0,0.00015709,2]
[420212317,1775785848127,-288.099884,0.00015709,2]
[420212318,1775785848151,-151.0,0.00015709,2]
[420212319,1775785848161,-153.498266,0.00015709,2]
[420212320,1775785848185,-231.773515,0.00015709,2]
[420212321,1775785848195,-231.773515,0.00015709,2]
[420212322,1775785848211,-231.773515,0.00015709,2]
[420212323,1775785848223,-231.773515,0.00015709,2]
[420212324,1775785848238,-151.0,0.00015709,2]
[420212325,1775785848247,-151.0,0.00015709,2]
[420212326,1775785848260,-151.0,0.00015709,2]
[420212327,1775785848274,-151.0,0.00015709,2]
[420212328,1775785848283,-151.0,0.00015709,2]
[420212329,1775785848295,-151.0,0.00015709,2]
[420212330,1775785848305,-172.920049,0.00015709,2]
[420212331,1775785848317,-172.920049,0.00015709,2]
[420212332,1775785848337,-151.0,0.00015709,2]
[420212333,1775785848348,-172.920049,0.00015709,2]
[420212334,1775785848362,-172.920049,0.00015709,2]
[420212335,1775785848381,-151.0,0.00015709,2]
[420212336,1775785848396,-151.0,0.00015709,2]
[420212337,1775785848408,-180.331152,0.00015709,2]
[420212338,1775785848435,-151.0,0.00015709,2]
[420212339,1775785848453,-161.809948,0.00015709,2]
[420212340,1775785848470,-151.0,0.00015709,2]
[420212341,1775785848487,-151.0,0.00015709,2]
[420212342,1775785848497,-151.0,0.00015709,2]
[420212343,1775785848514,-151.0,0.00015709,2]
[420212344,1775785848531,-210.269897,0.00015709,2]
[420212345,1775785848558,-151.0,0.00015709,2]
[420212346,1775785848570,-210.269897,0.00015709,2]